[Event "Titled Tuesday Blitz April 4 Late 2023"]
[White "Mendez Fortes, Eduardo Jesus"]
[Black "Kielinkei"]
[WhiteFideId "3502376"]
[WhiteElo "2307"]
[BlackElo "2418"]
[Result "1-0"]
[Round "08"]
[TimeControl "180+2"]
[Date "2023.04.04"]
[WhiteClock "0:00:30"]
[BlackClock "0:00:03"]

1. e4 {[%clk 0:02:55]}  c5 {[%clk 0:03:00]} 2. Nf3 {[%clk 0:02:55]}  d6 {[%clk 0:03:00]} 3. d4 {[%clk 0:02:55]}  cxd4 {[%clk 0:03:00]} 4. Nxd4 {[%clk 0:02:56]}  Nf6 {[%clk 0:03:00]} 5. Nc3 {[%clk 0:02:56]}  a6 {[%clk 0:03:01]} 6. Bg5 {[%clk 0:02:57]}  Nbd7 {[%clk 0:03:01]} 7. Bc4 {[%clk 0:02:56]}  Qb6 {[%clk 0:03:01]} 8. Bb3 {[%clk 0:02:57]}  e6 {[%clk 0:03:01]} 9. Qd2 {[%clk 0:02:58]}  Be7 {[%clk 0:03:01]} 10. O-O-O {[%clk 0:02:58]}  O-O {[%clk 0:02:58]} 11. f3 {[%clk 0:02:59]}  Nc5 {[%clk 0:02:58]} 12. g4 {[%clk 0:02:57]}  Qc7 {[%clk 0:02:57]} 13. Kb1 {[%clk 0:02:56]}  b5 {[%clk 0:02:58]} 14. a3 {[%clk 0:02:57]}  Rb8 {[%clk 0:02:53]} 15. h4 {[%clk 0:02:56]}  Bd7 {[%clk 0:02:53]} 16. h5 {[%clk 0:02:56]}  a5 {[%clk 0:02:36]} 17. Be3 {[%clk 0:02:50]}  b4 {[%clk 0:02:32]} 18. axb4 {[%clk 0:02:49]}  axb4 {[%clk 0:02:33]} 19. Na2 {[%clk 0:02:50]}  Nxb3 {[%clk 0:02:23]} 20. Nxb3 {[%clk 0:02:45]}  Ra8 {[%clk 0:02:12]} 21. g5 {[%clk 0:02:43]}  Ne8 {[%clk 0:02:11]} 22. g6 {[%clk 0:02:44]}  Nf6 {[%clk 0:02:03]} 23. h6 {[%clk 0:02:40]}  fxg6 {[%clk 0:01:35]} 24. hxg7 {[%clk 0:02:40]}  Rf7 {[%clk 0:01:34]} 25. Nxb4 {[%clk 0:02:21]}  d5 {[%clk 0:01:25]} 26. exd5 {[%clk 0:02:15]}  Bxb4 {[%clk 0:01:06]} 27. Qxb4 {[%clk 0:02:11]}  Nxd5 {[%clk 0:01:05]} 28. Qh4 {[%clk 0:01:59]}  Rxg7 {[%clk 0:01:03]} 29. Bd4 {[%clk 0:01:59]}  e5 {[%clk 0:00:55]} 30. Qe4 {[%clk 0:01:55]}  Bc6 {[%clk 0:00:40]} 31. Qxe5 {[%clk 0:01:39]}  Qxe5 {[%clk 0:00:36]} 32. Bxe5 {[%clk 0:01:40]}  Rf7 {[%clk 0:00:35]} 33. Nd4 {[%clk 0:01:24]}  Rfa7 {[%clk 0:00:33]} 34. Kc1 {[%clk 0:01:22]}  Ra1+ {[%clk 0:00:27]} 35. Kd2 {[%clk 0:01:22]}  Rxd1+ {[%clk 0:00:28]} 36. Rxd1 {[%clk 0:01:23]}  Bb7 {[%clk 0:00:28]} 37. c4 {[%clk 0:01:19]}  Nb4 {[%clk 0:00:26]} 38. Kc3 {[%clk 0:01:17]}  Na2+ {[%clk 0:00:24]} 39. Kb3 {[%clk 0:01:13]}  Ra5 {[%clk 0:00:08]} 40. Nb5 {[%clk 0:01:10]}  Bxf3 {[%clk 0:00:05]} 41. Rd7 {[%clk 0:01:08]}  Nc1+ {[%clk 0:00:04]} 42. Kc2 {[%clk 0:01:06]}  Ne2 {[%clk 0:00:04]} 43. Rg7+ {[%clk 0:01:06]}  Kf8 {[%clk 0:00:05]} 44. Rxh7 {[%clk 0:00:55]}  Ra1 {[%clk 0:00:04]} 45. Nd6 {[%clk 0:00:50]}  Kg8 {[%clk 0:00:01]} 46. Rg7+ {[%clk 0:00:49]}  Kf8 {[%clk 0:00:02]} 47. Rf7+ {[%clk 0:00:49]}  Kg8 {[%clk 0:00:02]} 48. Rxf3 {[%clk 0:00:50]}  Ng1 {[%clk 0:00:01]} 49. Rg3 {[%clk 0:00:49]}  Ne2 {[%clk 0:00:01]} 50. Rxg6+ {[%clk 0:00:49]}  Kf8 {[%clk 0:00:02]} 51. Rg2 {[%clk 0:00:45]}  Ng1 {[%clk 0:00:01]} 52. Ne4 {[%clk 0:00:38]}  Rf1 {[%clk 0:00:01]} 53. Bd6+ {[%clk 0:00:38]}  Ke8 {[%clk 0:00:01]} 54. c5 {[%clk 0:00:35]}  Kd7 {[%clk 0:00:02]} 55. b4 {[%clk 0:00:33]}  Kc6 {[%clk 0:00:02]} 56. Nc3 {[%clk 0:00:32]}  Nf3 {[%clk 0:00:02]} 57. b5+ {[%clk 0:00:33]}  Kd7 {[%clk 0:00:03]} 58. Rg7+ {[%clk 0:00:32]}  Ke6 {[%clk 0:00:03]} 59. Re7+ {[%clk 0:00:33]}  Kf5 {[%clk 0:00:03]} 60. b6 {[%clk 0:00:32]}  Nd4+ {[%clk 0:00:04]} 61. Kd3 {[%clk 0:00:31]}  Rd1+ {[%clk 0:00:04]} 62. Kc4 {[%clk 0:00:31]}  Nc6 {[%clk 0:00:03]} 63. Rc7 {[%clk 0:00:30]}  Na5+ {[%clk 0:00:02]} 64. Kb4 {[%clk 0:00:30]}  Ra1 {[%clk 0:00:03]} 65. b7 {[%clk 0:00:29]}  Nxb7 {[%clk 0:00:03]} 66. Rxb7 {[%clk 0:00:30]}  Rb1+ {[%clk 0:00:03]} 67. Nxb1 {[%clk 0:00:30]} 1-0


[Site "https://www.chess.com"]

[Event "Titled Tuesday Blitz April 4 Late 2023"]
[White "Goffredo_Fofi"]
[Black "Figorito, Nick"]
[BlackFideId "30923689"]
[WhiteElo "2504"]
[BlackElo "2390"]
[Result "0-1"]
[Round "08"]
[TimeControl "180+2"]
[Date "2023.04.04"]
[WhiteClock "0:00:19"]
[BlackClock "0:00:26"]

1. d4 {[%clk 0:03:00]}  Nf6 {[%clk 0:02:59]} 2. Nf3 {[%clk 0:03:01]}  g6 {[%clk 0:02:59]} 3. c4 {[%clk 0:03:01]}  Bg7 {[%clk 0:02:59]} 4. Nc3 {[%clk 0:03:02]}  d5 {[%clk 0:02:59]} 5. cxd5 {[%clk 0:03:02]}  Nxd5 {[%clk 0:03:00]} 6. e4 {[%clk 0:03:03]}  Nxc3 {[%clk 0:03:00]} 7. bxc3 {[%clk 0:03:04]}  c5 {[%clk 0:03:01]} 8. Rb1 {[%clk 0:03:05]}  O-O {[%clk 0:03:00]} 9. Be2 {[%clk 0:03:05]}  cxd4 {[%clk 0:03:01]} 10. cxd4 {[%clk 0:03:06]}  Qa5+ {[%clk 0:03:01]} 11. Bd2 {[%clk 0:03:07]}  Qxa2 {[%clk 0:03:01]} 12. O-O {[%clk 0:03:08]}  Bg4 {[%clk 0:03:01]} 13. Bg5 {[%clk 0:03:08]}  h6 {[%clk 0:03:01]} 14. Be3 {[%clk 0:03:08]}  Nc6 {[%clk 0:02:54]} 15. d5 {[%clk 0:03:08]}  Rfd8 {[%clk 0:02:53]} 16. Rxb7 {[%clk 0:03:08]}  e6 {[%clk 0:02:50]} 17. d6 {[%clk 0:03:08]}  Ne5 {[%clk 0:02:34]} 18. Re1 {[%clk 0:02:24]}  Bxf3 {[%clk 0:02:23]} 19. gxf3 {[%clk 0:02:18]}  Nc4 {[%clk 0:02:19]} 20. Bxc4 {[%clk 0:02:17]}  Qxc4 {[%clk 0:02:19]} 21. Rxa7 {[%clk 0:01:15]}  Rxa7 {[%clk 0:02:16]} 22. Bxa7 {[%clk 0:01:16]}  Qa6 {[%clk 0:02:16]} 23. Bc5 {[%clk 0:01:15]}  Bf8 {[%clk 0:02:03]} 24. e5 {[%clk 0:01:14]}  Qc6 {[%clk 0:02:00]} 25. Be3 {[%clk 0:01:09]}  Bg7 {[%clk 0:01:58]} 26. f4 {[%clk 0:01:08]}  g5 {[%clk 0:01:46]} 27. Qh5 {[%clk 0:00:41]}  gxf4 {[%clk 0:01:28]} 28. Bxf4 {[%clk 0:00:39]}  Qc3 {[%clk 0:01:29]} 29. Re3 {[%clk 0:00:31]}  Qc1+ {[%clk 0:01:24]} 30. Kg2 {[%clk 0:00:31]}  Qc6+ {[%clk 0:01:24]} 31. Qf3 {[%clk 0:00:31]}  Qc5 {[%clk 0:01:09]} 32. Qe4 {[%clk 0:00:30]}  Kh8 {[%clk 0:01:07]} 33. Rg3 {[%clk 0:00:28]}  Rg8 {[%clk 0:01:06]} 34. Qe3 {[%clk 0:00:21]}  Qc6+ {[%clk 0:01:06]} 35. Qf3 {[%clk 0:00:20]}  Qc2 {[%clk 0:00:59]} 36. Qh5 {[%clk 0:00:15]}  Qe4+ {[%clk 0:00:58]} 37. Kh3 {[%clk 0:00:15]}  Qxf4 {[%clk 0:00:56]} 38. d7 {[%clk 0:00:14]}  Qf5+ {[%clk 0:00:49]} 39. Qxf5 {[%clk 0:00:12]}  exf5 {[%clk 0:00:50]} 40. Rf3 {[%clk 0:00:13]}  Rd8 {[%clk 0:00:41]} 41. Rd3 {[%clk 0:00:12]}  Bxe5 {[%clk 0:00:41]} 42. Kg2 {[%clk 0:00:13]}  Kg7 {[%clk 0:00:41]} 43. h3 {[%clk 0:00:13]}  Kf6 {[%clk 0:00:42]} 44. Kf3 {[%clk 0:00:14]}  Ke7 {[%clk 0:00:41]} 45. Rd5 {[%clk 0:00:14]}  f6 {[%clk 0:00:41]} 46. Rb5 {[%clk 0:00:13]}  Rxd7 {[%clk 0:00:41]} 47. Rb6 {[%clk 0:00:13]}  Rd3+ {[%clk 0:00:40]} 48. Kg2 {[%clk 0:00:13]}  Rd2 {[%clk 0:00:39]} 49. Rb7+ {[%clk 0:00:14]}  Ke6 {[%clk 0:00:39]} 50. Rh7 {[%clk 0:00:14]}  Bf4 {[%clk 0:00:37]} 51. Kf3 {[%clk 0:00:14]}  Bg5 {[%clk 0:00:35]} 52. h4 {[%clk 0:00:14]}  Bxh4 {[%clk 0:00:35]} 53. Rxh6 {[%clk 0:00:15]}  Bg5 {[%clk 0:00:34]} 54. Rh8 {[%clk 0:00:16]}  Ra2 {[%clk 0:00:34]} 55. Re8+ {[%clk 0:00:15]}  Kf7 {[%clk 0:00:34]} 56. Re1 {[%clk 0:00:15]}  Ra3+ {[%clk 0:00:34]} 57. Kg2 {[%clk 0:00:14]}  Kg6 {[%clk 0:00:34]} 58. Re2 {[%clk 0:00:14]}  Bh4 {[%clk 0:00:33]} 59. Rc2 {[%clk 0:00:13]}  f4 {[%clk 0:00:31]} 60. Rb2 {[%clk 0:00:12]}  f3+ {[%clk 0:00:29]} 61. Kh3 {[%clk 0:00:12]}  Bg5 {[%clk 0:00:26]} 62. Kg4 {[%clk 0:00:12]}  Rd3 {[%clk 0:00:25]} 63. Rc2 {[%clk 0:00:12]}  Rd2 {[%clk 0:00:25]} 64. Rxd2 {[%clk 0:00:11]}  Bxd2 {[%clk 0:00:26]} 65. Kxf3 {[%clk 0:00:12]}  Kf5 {[%clk 0:00:26]} 66. Ke2 {[%clk 0:00:12]}  Bh6 {[%clk 0:00:27]} 67. Kf3 {[%clk 0:00:13]}  Bg5 {[%clk 0:00:27]} 68. Ke2 {[%clk 0:00:14]}  Kf4 {[%clk 0:00:27]} 69. Kf1 {[%clk 0:00:14]}  Kf3 {[%clk 0:00:28]} 70. Kg1 {[%clk 0:00:15]}  Bh4 {[%clk 0:00:28]} 71. Kf1 {[%clk 0:00:16]}  f5 {[%clk 0:00:27]} 72. Ke1 {[%clk 0:00:16]}  Bxf2+ {[%clk 0:00:28]} 73. Kf1 {[%clk 0:00:17]}  Bh4 {[%clk 0:00:27]} 74. Kg1 {[%clk 0:00:18]}  Ke2 {[%clk 0:00:26]} 75. Kg2 {[%clk 0:00:18]}  f4 {[%clk 0:00:26]} 76. Kh3 {[%clk 0:00:19]}  f3 {[%clk 0:00:26]} 0-1


[Site "https://www.chess.com"]

[Event "Titled Tuesday Blitz April 4 Late 2023"]
[White "Qiao, Cindy"]
[Black "Dudzinski, Pawel"]
[WhiteFideId "2620243"]
[BlackFideId "1117890"]
[WhiteElo "1777"]
[BlackElo "2099"]
[Result "0-1"]
[Round "08"]
[TimeControl "180+2"]
[Date "2023.04.04"]
[WhiteClock "0:01:18"]
[BlackClock "0:00:18"]

1. d4 {[%clk 0:03:00]}  d5 {[%clk 0:02:54]} 2. Bf4 {[%clk 0:03:00]}  c6 {[%clk 0:02:53]} 3. e3 {[%clk 0:03:01]}  f5 {[%clk 0:02:52]} 4. Nf3 {[%clk 0:03:00]}  e6 {[%clk 0:02:53]} 5. c4 {[%clk 0:02:59]}  Nf6 {[%clk 0:02:53]} 6. Nc3 {[%clk 0:02:59]}  Be7 {[%clk 0:02:54]} 7. Bd3 {[%clk 0:02:59]}  O-O {[%clk 0:02:54]} 8. O-O {[%clk 0:02:59]}  Bd7 {[%clk 0:02:55]} 9. Ne5 {[%clk 0:03:00]}  Be8 {[%clk 0:02:55]} 10. Qb3 {[%clk 0:02:58]}  Qb6 {[%clk 0:02:54]} 11. c5 {[%clk 0:02:58]}  Qxb3 {[%clk 0:02:54]} 12. axb3 {[%clk 0:02:59]}  Nbd7 {[%clk 0:02:53]} 13. b4 {[%clk 0:02:59]}  Nxe5 {[%clk 0:02:53]} 14. Bxe5 {[%clk 0:03:00]}  Nd7 {[%clk 0:02:53]} 15. Bg3 {[%clk 0:02:59]}  a6 {[%clk 0:02:51]} 16. b5 {[%clk 0:02:58]}  cxb5 {[%clk 0:02:44]} 17. Nxb5 {[%clk 0:02:57]}  Nxc5 {[%clk 0:02:29]} 18. dxc5 {[%clk 0:02:52]}  Bxb5 {[%clk 0:02:27]} 19. Bxb5 {[%clk 0:02:51]}  axb5 {[%clk 0:02:28]} 20. b4 {[%clk 0:02:52]}  Bf6 {[%clk 0:02:13]} 21. Rab1 {[%clk 0:02:52]}  Ra4 {[%clk 0:02:05]} 22. Rfc1 {[%clk 0:02:49]}  Rc8 {[%clk 0:02:02]} 23. h3 {[%clk 0:02:47]}  Kf7 {[%clk 0:01:59]} 24. Bd6 {[%clk 0:02:47]}  Be7 {[%clk 0:01:54]} 25. Be5 {[%clk 0:02:46]}  Rc6 {[%clk 0:01:46]} 26. Bd4 {[%clk 0:02:30]}  Bf6 {[%clk 0:01:39]} 27. f4 {[%clk 0:02:23]}  Rca6 {[%clk 0:01:25]} 28. Rc2 {[%clk 0:02:15]}  Ke7 {[%clk 0:01:14]} 29. Kf2 {[%clk 0:02:14]}  Kd7 {[%clk 0:01:11]} 30. Kf3 {[%clk 0:02:13]}  Ra2 {[%clk 0:01:09]} 31. Rcb2 {[%clk 0:02:06]}  Rxb2 {[%clk 0:01:07]} 32. Rxb2 {[%clk 0:02:07]}  Bxd4 {[%clk 0:00:55]} 33. exd4 {[%clk 0:02:06]}  Ra3+ {[%clk 0:00:56]} 34. Ke2 {[%clk 0:02:06]}  Rg3 {[%clk 0:00:55]} 35. Ke1 {[%clk 0:01:58]}  Rd3 {[%clk 0:00:54]} 36. Kf2 {[%clk 0:01:49]}  Rxd4 {[%clk 0:00:53]} 37. Kg3 {[%clk 0:01:46]}  g6 {[%clk 0:00:45]} 38. Rb3 {[%clk 0:01:37]}  Kc6 {[%clk 0:00:44]} 39. Kf3 {[%clk 0:01:35]}  Rc4 {[%clk 0:00:38]} 40. Ke3 {[%clk 0:01:32]}  d4+ {[%clk 0:00:32]} 41. Kd3 {[%clk 0:01:32]}  Kd5 {[%clk 0:00:30]} 42. Rb1 {[%clk 0:01:22]}  Rc3+ {[%clk 0:00:29]} 43. Kd2 {[%clk 0:01:23]}  Rg3 {[%clk 0:00:29]} 44. Re1 {[%clk 0:01:21]}  Rxg2+ {[%clk 0:00:28]} 45. Kd3 {[%clk 0:01:22]}  Rg3+ {[%clk 0:00:29]} 46. Kd2 {[%clk 0:01:23]}  Rxh3 {[%clk 0:00:29]} 47. Re5+ {[%clk 0:01:22]}  Kc4 {[%clk 0:00:28]} 48. Rxe6 {[%clk 0:01:23]}  Rh2+ {[%clk 0:00:27]} 49. Ke1 {[%clk 0:01:23]}  Kc3 {[%clk 0:00:24]} 50. c6 {[%clk 0:01:23]}  Rh1+ {[%clk 0:00:21]} 51. Ke2 {[%clk 0:01:22]}  d3+ {[%clk 0:00:20]} 52. Ke3 {[%clk 0:01:20]}  Re1+ {[%clk 0:00:17]} 53. Kf2 {[%clk 0:01:17]}  Rxe6 {[%clk 0:00:18]} 54. cxb7 {[%clk 0:01:18]}  Rb6 {[%clk 0:00:18]} 0-1


[Site "https://www.chess.com"]

[Event "Titled Tuesday Blitz April 4 Late 2023"]
[White "Senthilkumar, Pranav"]
[Black "Buchenau, Frank"]
[WhiteFideId "2083477"]
[BlackFideId "4604350"]
[WhiteElo "1860"]
[BlackElo "2157"]
[Result "1-0"]
[Round "08"]
[TimeControl "180+2"]
[Date "2023.04.04"]
[WhiteClock "0:01:36"]
[BlackClock "0:00:03"]

1. Nf3 {[%clk 0:02:59]}  Nf6 {[%clk 0:02:59]} 2. b3 {[%clk 0:02:58]}  d5 {[%clk 0:02:57]} 3. Bb2 {[%clk 0:02:59]}  Bg4 {[%clk 0:02:56]} 4. e3 {[%clk 0:02:59]}  g6 {[%clk 0:02:54]} 5. Be2 {[%clk 0:02:58]}  Bg7 {[%clk 0:02:54]} 6. O-O {[%clk 0:02:58]}  O-O {[%clk 0:02:54]} 7. c4 {[%clk 0:02:58]}  c6 {[%clk 0:02:04]} 8. Nc3 {[%clk 0:02:42]}  Ne4 {[%clk 0:02:01]} 9. Qc2 {[%clk 0:02:38]}  Nxc3 {[%clk 0:01:35]} 10. Bxc3 {[%clk 0:02:39]}  Bf5 {[%clk 0:01:21]} 11. Qb2 {[%clk 0:02:37]}  Bxc3 {[%clk 0:01:16]} 12. Qxc3 {[%clk 0:02:35]}  Nd7 {[%clk 0:01:09]} 13. d4 {[%clk 0:02:35]}  Nf6 {[%clk 0:01:07]} 14. Ne5 {[%clk 0:02:34]}  Ne4 {[%clk 0:01:05]} 15. Qc1 {[%clk 0:02:29]}  f6 {[%clk 0:01:04]} 16. Nf3 {[%clk 0:02:29]}  Qa5 {[%clk 0:01:03]} 17. Rd1 {[%clk 0:02:25]}  Nc3 {[%clk 0:01:01]} 18. Qd2 {[%clk 0:02:17]}  Nxe2+ {[%clk 0:00:49]} 19. Qxe2 {[%clk 0:02:15]}  Rfe8 {[%clk 0:00:44]} 20. Nd2 {[%clk 0:02:12]}  e5 {[%clk 0:00:42]} 21. e4 {[%clk 0:02:05]}  exd4 {[%clk 0:00:41]} 22. f3 {[%clk 0:01:54]}  dxe4 {[%clk 0:00:36]} 23. fxe4 {[%clk 0:01:53]}  Qc3 {[%clk 0:00:19]} 24. Rac1 {[%clk 0:01:50]}  Qe3+ {[%clk 0:00:17]} 25. Qxe3 {[%clk 0:01:49]}  dxe3 {[%clk 0:00:17]} 26. exf5 {[%clk 0:01:50]}  exd2 {[%clk 0:00:17]} 27. Rxd2 {[%clk 0:01:50]}  Rad8 {[%clk 0:00:16]} 28. Rcd1 {[%clk 0:01:49]}  Rxd2 {[%clk 0:00:15]} 29. Rxd2 {[%clk 0:01:50]}  Kf7 {[%clk 0:00:13]} 30. fxg6+ {[%clk 0:01:48]}  hxg6 {[%clk 0:00:13]} 31. Kf2 {[%clk 0:01:49]}  Re7 {[%clk 0:00:13]} 32. Rd8 {[%clk 0:01:48]}  Ke6 {[%clk 0:00:12]} 33. Rg8 {[%clk 0:01:48]}  g5 {[%clk 0:00:12]} 34. g3 {[%clk 0:01:48]}  Kf5 {[%clk 0:00:12]} 35. h4 {[%clk 0:01:45]}  Rd7 {[%clk 0:00:11]} 36. Ke3 {[%clk 0:01:40]}  Re7+ {[%clk 0:00:10]} 37. Kf3 {[%clk 0:01:40]}  Rd7 {[%clk 0:00:09]} 38. g4+ {[%clk 0:01:40]}  Ke5 {[%clk 0:00:09]} 39. Re8+ {[%clk 0:01:39]}  Kd4 {[%clk 0:00:08]} 40. h5 {[%clk 0:01:38]}  Rf7 {[%clk 0:00:05]} 41. Rg8 {[%clk 0:01:36]}  Kc3 {[%clk 0:00:03]} 42. h6 {[%clk 0:01:36]} 1-0


[Site "https://www.chess.com"]

[Event "Titled Tuesday Blitz April 4 Late 2023"]
[White "Prydun, Andriy"]
[Black "micke12a"]
[WhiteFideId "14145898"]
[WhiteElo "2164"]
[BlackElo "2353"]
[Result "0-1"]
[Round "08"]
[TimeControl "180+2"]
[Date "2023.04.04"]
[WhiteClock "0:00:04"]
[BlackClock "0:00:09"]

1. e4 {[%clk 0:03:00]}  c5 {[%clk 0:02:56]} 2. Nf3 {[%clk 0:03:00]}  d6 {[%clk 0:02:56]} 3. c3 {[%clk 0:02:59]}  Nf6 {[%clk 0:02:56]} 4. h3 {[%clk 0:03:00]}  g6 {[%clk 0:02:56]} 5. Bd3 {[%clk 0:02:57]}  Bg7 {[%clk 0:02:57]} 6. O-O {[%clk 0:02:56]}  O-O {[%clk 0:02:58]} 7. Bc2 {[%clk 0:02:56]}  Nc6 {[%clk 0:02:58]} 8. d4 {[%clk 0:02:57]}  cxd4 {[%clk 0:02:57]} 9. cxd4 {[%clk 0:02:58]}  d5 {[%clk 0:02:58]} 10. e5 {[%clk 0:02:52]}  Ne4 {[%clk 0:02:58]} 11. Nbd2 {[%clk 0:02:45]}  Nxd2 {[%clk 0:02:57]} 12. Bxd2 {[%clk 0:02:43]}  f6 {[%clk 0:02:54]} 13. Bc3 {[%clk 0:02:40]}  fxe5 {[%clk 0:02:48]} 14. Nxe5 {[%clk 0:02:39]}  Nxe5 {[%clk 0:02:48]} 15. dxe5 {[%clk 0:02:39]}  Bf5 {[%clk 0:02:48]} 16. Bb3 {[%clk 0:02:26]}  Be6 {[%clk 0:02:40]} 17. Qd2 {[%clk 0:02:18]}  Qd7 {[%clk 0:02:35]} 18. Rad1 {[%clk 0:02:17]}  Rad8 {[%clk 0:02:32]} 19. Qe3 {[%clk 0:02:14]}  b6 {[%clk 0:02:28]} 20. Rd4 {[%clk 0:02:11]}  Qc7 {[%clk 0:01:57]} 21. Re1 {[%clk 0:02:10]}  Rd7 {[%clk 0:01:47]} 22. h4 {[%clk 0:01:54]}  Rf5 {[%clk 0:01:34]} 23. Rd3 {[%clk 0:01:44]}  Kh8 {[%clk 0:01:31]} 24. Bd4 {[%clk 0:01:37]}  Rd8 {[%clk 0:01:22]} 25. Rc3 {[%clk 0:01:36]}  Qd7 {[%clk 0:01:17]} 26. Rec1 {[%clk 0:01:36]}  Rh5 {[%clk 0:01:17]} 27. Rc7 {[%clk 0:01:32]}  Qe8 {[%clk 0:01:16]} 28. R1c6 {[%clk 0:01:30]}  Bd7 {[%clk 0:01:10]} 29. Rf6 {[%clk 0:01:22]}  exf6 {[%clk 0:00:44]} 30. exf6 {[%clk 0:01:23]}  Qxe3 {[%clk 0:00:43]} 31. fxe3 {[%clk 0:01:06]}  Bf8 {[%clk 0:00:35]} 32. f7+ {[%clk 0:01:04]}  Bg7 {[%clk 0:00:35]} 33. Rxd7 {[%clk 0:01:04]}  Rf8 {[%clk 0:00:23]} 34. Bxd5 {[%clk 0:00:42]}  Bxd4 {[%clk 0:00:21]} 35. exd4 {[%clk 0:00:41]}  Rxh4 {[%clk 0:00:21]} 36. Be6 {[%clk 0:00:40]}  Kg7 {[%clk 0:00:21]} 37. d5 {[%clk 0:00:37]}  Kf6 {[%clk 0:00:21]} 38. Rxa7 {[%clk 0:00:37]}  Rb4 {[%clk 0:00:19]} 39. b3 {[%clk 0:00:36]}  h5 {[%clk 0:00:15]} 40. Rc7 {[%clk 0:00:31]}  g5 {[%clk 0:00:15]} 41. Rc6 {[%clk 0:00:30]}  Ke5 {[%clk 0:00:15]} 42. Rc7 {[%clk 0:00:26]}  Rd4 {[%clk 0:00:15]} 43. Re7 {[%clk 0:00:26]}  Kf6 {[%clk 0:00:15]} 44. Re8 {[%clk 0:00:26]}  Kg7 {[%clk 0:00:15]} 45. Kf2 {[%clk 0:00:20]}  h4 {[%clk 0:00:10]} 46. Kf3 {[%clk 0:00:19]}  g4+ {[%clk 0:00:08]} 47. Ke3 {[%clk 0:00:17]}  Rd1 {[%clk 0:00:07]} 48. Bxg4 {[%clk 0:00:09]}  Re1+ {[%clk 0:00:07]} 49. Kf2 {[%clk 0:00:09]}  Rexe8 {[%clk 0:00:06]} 50. Be6 {[%clk 0:00:07]}  Re7 {[%clk 0:00:07]} 51. Kf3 {[%clk 0:00:06]}  Kf6 {[%clk 0:00:07]} 52. Kg4 {[%clk 0:00:06]}  Rxe6 {[%clk 0:00:08]} 53. dxe6 {[%clk 0:00:04]}  Kxe6 {[%clk 0:00:09]} 0-1


[Site "https://www.chess.com"]

[Event "Titled Tuesday Blitz April 4 Late 2023"]
[White "Erzhanov, Arman"]
[Black "Novikova, Galina"]
[WhiteFideId "4138821"]
[BlackFideId "4157095"]
[WhiteElo "2138"]
[BlackElo "1953"]
[Result "1-0"]
[Round "08"]
[TimeControl "180+2"]
[Date "2023.04.04"]
[WhiteClock "0:00:29"]
[BlackClock "0:00:26"]

1. e4 {[%clk 0:02:51]}  e6 {[%clk 0:02:59]} 2. b3 {[%clk 0:02:50]}  d5 {[%clk 0:03:00]} 3. Bb2 {[%clk 0:02:51]}  dxe4 {[%clk 0:03:00]} 4. Nc3 {[%clk 0:02:50]}  Nf6 {[%clk 0:03:01]} 5. Qe2 {[%clk 0:02:51]}  Nc6 {[%clk 0:03:02]} 6. O-O-O {[%clk 0:02:51]}  Nd4 {[%clk 0:02:59]} 7. Qe1 {[%clk 0:02:50]}  e5 {[%clk 0:02:55]} 8. Nxe4 {[%clk 0:02:49]}  Bf5 {[%clk 0:02:55]} 9. Nxf6+ {[%clk 0:02:47]}  gxf6 {[%clk 0:02:54]} 10. d3 {[%clk 0:02:35]}  Qd7 {[%clk 0:02:51]} 11. Ne2 {[%clk 0:02:23]}  Bc5 {[%clk 0:02:30]} 12. Ng3 {[%clk 0:02:17]}  Be6 {[%clk 0:02:29]} 13. Ne4 {[%clk 0:02:17]}  Be7 {[%clk 0:02:27]} 14. c3 {[%clk 0:01:55]}  Nc6 {[%clk 0:02:22]} 15. d4 {[%clk 0:01:53]}  O-O-O {[%clk 0:02:22]} 16. d5 {[%clk 0:01:47]}  Bxd5 {[%clk 0:02:19]} 17. c4 {[%clk 0:01:47]}  Nd4 {[%clk 0:01:08]} 18. cxd5 {[%clk 0:01:46]}  Qxd5 {[%clk 0:01:09]} 19. Bc4 {[%clk 0:01:45]}  Qc6 {[%clk 0:01:09]} 20. Kb1 {[%clk 0:01:44]}  f5 {[%clk 0:01:02]} 21. Ng3 {[%clk 0:01:31]}  Bf6 {[%clk 0:00:45]} 22. Bxd4 {[%clk 0:01:24]}  exd4 {[%clk 0:00:43]} 23. Bd3 {[%clk 0:01:13]}  Kb8 {[%clk 0:00:41]} 24. Nxf5 {[%clk 0:01:12]}  Qxg2 {[%clk 0:00:38]} 25. Be4 {[%clk 0:01:07]}  Qg4 {[%clk 0:00:35]} 26. f3 {[%clk 0:01:06]}  Qf4 {[%clk 0:00:30]} 27. Qb4 {[%clk 0:01:04]}  c6 {[%clk 0:00:28]} 28. Nxd4 {[%clk 0:00:32]}  Qe5 {[%clk 0:00:26]} 29. Nxc6+ {[%clk 0:00:28]}  Kc7 {[%clk 0:00:25]} 30. Nxe5 {[%clk 0:00:28]}  Bxe5 {[%clk 0:00:26]} 31. Qxb7# {[%clk 0:00:29]} 1-0


[Site "https://www.chess.com"]

[Event "Titled Tuesday Blitz April 4 Late 2023"]
[White "Rizzo, Tobias"]
[Black "Smith, Garrett L"]
[WhiteFideId "30942691"]
[BlackFideId "2024829"]
[WhiteElo "2453"]
[BlackElo "2324"]
[Result "0-1"]
[Round "08"]
[TimeControl "180+2"]
[Date "2023.04.04"]
[WhiteClock "0:00:12"]
[BlackClock "0:00:23"]

1. d4 {[%clk 0:03:00]}  Nf6 {[%clk 0:02:59]} 2. Bg5 {[%clk 0:03:01]}  d5 {[%clk 0:02:59]} 3. Bxf6 {[%clk 0:03:01]}  gxf6 {[%clk 0:03:00]} 4. e3 {[%clk 0:03:02]}  c5 {[%clk 0:03:00]} 5. c3 {[%clk 0:03:00]}  e6 {[%clk 0:03:00]} 6. Nf3 {[%clk 0:03:00]}  Nc6 {[%clk 0:03:00]} 7. Nbd2 {[%clk 0:03:00]}  f5 {[%clk 0:02:57]} 8. Be2 {[%clk 0:02:58]}  Bd7 {[%clk 0:02:56]} 9. O-O {[%clk 0:02:56]}  Qf6 {[%clk 0:02:49]} 10. g3 {[%clk 0:02:53]}  Bd6 {[%clk 0:02:45]} 11. dxc5 {[%clk 0:02:41]}  Bxc5 {[%clk 0:02:46]} 12. Nb3 {[%clk 0:02:42]}  Bd6 {[%clk 0:02:44]} 13. Nbd4 {[%clk 0:02:42]}  O-O-O {[%clk 0:02:28]} 14. b4 {[%clk 0:02:35]}  h5 {[%clk 0:02:11]} 15. b5 {[%clk 0:02:19]}  Ne7 {[%clk 0:01:53]} 16. Rc1 {[%clk 0:02:15]}  Kb8 {[%clk 0:01:51]} 17. c4 {[%clk 0:02:14]}  dxc4 {[%clk 0:01:49]} 18. Bxc4 {[%clk 0:02:13]}  h4 {[%clk 0:01:42]} 19. Ne2 {[%clk 0:02:10]}  Bc8 {[%clk 0:01:32]} 20. Qb3 {[%clk 0:02:02]}  hxg3 {[%clk 0:01:29]} 21. fxg3 {[%clk 0:01:59]}  Qh6 {[%clk 0:01:25]} 22. Rc2 {[%clk 0:01:34]}  Bc5 {[%clk 0:01:16]} 23. Nf4 {[%clk 0:01:22]}  Ng6 {[%clk 0:01:04]} 24. Ng2 {[%clk 0:01:18]}  b6 {[%clk 0:00:59]} 25. Kh1 {[%clk 0:00:33]}  Bb7 {[%clk 0:00:58]} 26. Nf4 {[%clk 0:00:34]}  Ne5 {[%clk 0:00:49]} 27. Be2 {[%clk 0:00:32]}  Ng4 {[%clk 0:00:44]} 28. Bd1 {[%clk 0:00:24]}  Nxe3 {[%clk 0:00:39]} 29. Rxc5 {[%clk 0:00:17]}  Nxf1 {[%clk 0:00:32]} 30. Rc2 {[%clk 0:00:15]}  Rxd1 {[%clk 0:00:26]} 31. Kg2 {[%clk 0:00:12]}  Qxh2# {[%clk 0:00:23]} 0-1


[Site "https://www.chess.com"]